bitfinex/quotes_ETHUSD_20260126
["timestamp","ask_amount","ask_price","bid_price","bid_amount"]
[1769447057531,0.002,2909.7,2908.7,2.38084873]
[1769447057693,0.002,2909.7,2908.8,2.6179336]
[1769447059522,2.06647383,2909.7,2908.8,0.23808487]
[1769447059713,2.06647383,2909.7,2908.7,0.86047069]
[1769447059907,2.06647383,2909.7,2908.7,0.001]
[1769447060303,2.06647383,2909.7,2908.7,0.86048811]
[1769447060693,0.002,2909.9,2908.9,2.01475738]
[1769447061130,2.06647383,2909.9,2908.8,0.85943202]
[1769447061286,2.06647383,2909.9,2908.9,0.42983102]
[1769447061489,2.06647383,2909.9,2908.9,1.28923378]
[1769447063311,0.002,2910.0,2909.0,2.01475738]
[1769447063515,0.002,2910.0,2909.1,0.85937231]
[1769447064423,2.06647383,2910.0,2909.0,2.87413766]
[1769447064594,2.06647383,2910.0,2909.1,0.67416552]
[1769447065936,2.06647383,2910.0,2909.1,1.53352177]
[1769447066270,2.06647383,2910.0,2909.1,0.67416552]
[1769447066541,2.06647383,2910.0,2909.1,0.85936332]
[1769447066542,0.002,2910.0,2909.1,0.85936332]
[1769447067420,0.002,2910.0,2909.1,2.8741207]
[1769447067711,0.002,2910.2,2909.3,0.85931323]
[1769447067917,0.002,2909.8,2909.4,0.72]
[1769447068111,0.002,2910.2,2909.4,1.42484889]
[1769447068112,2.06647383,2910.2,2909.4,1.42484889]
[1769447068911,0.002,2910.3,2909.4,3.45677159]
[1769447070202,0.002,2910.3,2909.5,0.85925416]
[1769447073750,2.06447383,2911.0,2909.6,2.01475738]
[1769447073924,2.27132121,2911.0,2909.7,0.28911769]
[1769447074324,0.002,2911.1,2909.7,0.28911769]
[1769447074325,0.002,2911.2,2910.1,2.01475738]
[1769447074572,0.0008,2911.3,2910.2,3.59380486]
[1769447074722,0.0008,2911.3,2910.3,2.01475738]
[1769447074923,0.0008,2911.3,2910.4,2.37413787]
[1769447075347,0.0008,2911.3,2910.4,0.35938049]
[1769447075551,0.0008,2911.3,2910.3,2.01475738]
[1769447076366,2.06527383,2911.3,2910.2,1.57904748]
[1769447076727,2.06527383,2911.3,2910.2,3.59380486]
[1769447077567,2.06527383,2911.3,2910.2,0.85904056]
[1769447077856,0.0008,2911.3,2910.3,2.01475738]
[1769447078167,0.0008,2911.3,2910.4,2.30213717]
[1769447078547,0.0008,2911.3,2910.4,3.16111224]
[1769447078937,0.0008,2911.3,2910.4,3.16112098]
[1769447079457,0.0008,2911.3,2910.4,0.28737979]
[1769447079628,0.0008,2911.3,2910.5,5.8018092]
[1769447080444,2.06527383,2911.3,2910.4,0.001]
[1769447081370,2.06447383,2911.2,2910.4,0.001]
[1769447081976,2.06447383,2911.2,2909.4,2.71960627]
[1769447082142,2.06447383,2911.2,2909.4,3.57887526]
[1769447082341,2.06447383,2911.0,2909.6,0.85922176]
[1769447082571,2.06447383,2910.9,2909.5,1.56084864]
[1769447083076,2.06447383,2910.9,2909.5,0.85925168]
[1769447083247,2.06447383,2910.9,2909.5,2.87400906]
[1769447083810,2.06447383,2910.9,2909.1,0.001]
[1769447084347,2.06447383,2910.7,2909.1,0.001]
[1769447084575,2.06447383,2910.5,2909.1,0.001]
[1769447084774,0.85892943,2910.6,2909.1,0.001]
[1769447084775,2.06447383,2910.3,2909.1,0.20257574]
[1769447084942,2.06447383,2910.3,2909.1,0.001]
[1769447087272,2.06447383,2910.2,2909.1,0.001]
[1769447089069,1.93976023,2910.1,2909.0,10.0]
[1769447091111,0.29234033,2910.4,2909.3,0.001]
[1769447091273,1.93976023,2910.4,2909.3,0.001]
[1769447091470,2.13373625,2910.4,2909.3,0.18752992]
[1769447094593,1.93976023,2910.3,2909.3,0.18752992]
[1769447094804,1.93976023,2910.3,2909.3,0.001]
[1769447096480,0.85902211,2910.3,2909.3,0.001]
[1769447096671,1.93976023,2910.2,2909.3,0.001]
[1769447097407,2.85373625,2910.4,2909.3,0.001]
[1769447097573,1.93976023,2910.3,2909.3,0.001]
[1769447099789,1.93976023,2910.2,2909.3,0.001]
[1769447101302,1.93976023,2910.2,2909.0,9.91914925]
[1769447102119,1.93976023,2910.0,2909.0,9.91914925]
[1769447102290,1.93976023,2910.0,2909.1,1.86429915]
[1769447102291,0.72,2910.0,2909.1,1.86429915]
[1769447103016,0.002,2910.2,2909.1,1.86429915]
[1769447103215,0.002,2910.2,2909.0,10.77854435]
[1769447103216,0.002,2910.2,2909.3,1.86429915]
[1769447104209,0.002,2910.2,2909.4,0.8592837]
[1769447104410,0.002,2910.4,2909.4,0.8592837]
[1769447104411,0.002,2910.4,2909.5,1.86429915]
[1769447104584,0.002,2910.4,2909.7,1.86429915]
[1769447109027,1.94176023,2910.4,2909.6,0.27235828]
[1769447109193,1.94176023,2910.4,2909.3,2.72359307]
[1769447111926,1.94176023,2910.4,2909.0,15.22101564]
[1769447112098,1.94176023,2910.4,2909.0,12.64283056]
[1769447112425,1.94176023,2910.4,2909.0,9.91914925]
[1769447112627,2.13393625,2910.3,2909.0,9.91914925]
[1769447114907,2.13393625,2910.3,2909.2,0.001]
[1769447115295,1.94176023,2910.2,2909.2,0.001]
[1769447115496,0.002,2910.2,2909.2,1.86529915]
[1769447118210,0.002,2910.2,2909.3,1.86429915]
[1769447118411,0.002,2910.4,2909.6,1.86429915]
[1769447119112,0.002,2910.4,2909.6,0.8591997]
[1769447119305,0.002,2910.4,2909.7,2.03236356]
[1769447120633,0.0008,2911.3,2909.8,2.03236356]
[1769447121204,0.0008,2911.3,2910.0,2.03236356]
[1769447121430,0.0008,2911.3,2910.2,2.03236356]
[1769447121618,0.0008,2911.3,2910.1,0.28914996]
[1769447121917,1.85157923,2911.3,2909.9,2.89149961]
[1769447122207,1.85157923,2911.3,2910.0,2.03236356]
[1769447122908,0.0008,2911.3,2910.0,2.03236356]
[1769447123142,0.0008,2911.3,2910.3,2.03236356]
[1769447123331,0.0008,2911.3,2910.5,2.03236356]
[1769447123651,0.0008,2911.3,2910.7,2.03236356]
[1769447127110,0.002,2911.1,2910.7,2.03236356]
[1769447128850,0.002,2911.1,2910.6,0.2891352]
[1769447129035,0.002,2911.1,2910.4,0.001]
[1769447129239,0.002,2911.1,2910.4,2.03336356]
[1769447129539,0.002,2911.1,2910.5,2.03236356]
[1769447131548,0.0028,2911.3,2910.6,2.03236356]
[1769447132549,0.0008,2912.2,2910.6,2.03236356]
[1769447132550,1.85157923,2912.2,2910.8,2.03236356]
[1769447132740,2.03593715,2912.1,2910.9,2.03236356]
[1769447134038,0.18515792,2912.1,2910.9,2.03236356]
[1769447134227,0.0008,2912.2,2910.9,2.03236356]
[1769447134424,0.0008,2912.2,2910.6,0.85891081]
[1769447134425,1.85077923,2912.1,2910.6,0.85891081]
[1769447134624,1.85077923,2912.1,2910.6,2.89127437]
[1769447134951,1.85077923,2912.1,2910.7,2.03236356]
[1769447135129,2.03593715,2912.0,2910.7,2.66507016]
[1769447135323,2.03593715,2912.0,2910.5,0.85893661]
[1769447135645,2.03593715,2912.0,2910.4,0.001]
[1769447136522,1.85077923,2911.8,2910.4,0.001]
[1769447138722,1.85077923,2911.6,2910.4,0.001]
[1769447139651,1.85077923,2911.6,2909.9,2.03236356]
[1769447139956,1.85077923,2911.4,2909.6,2.03236356]
[1769447140658,1.85077923,2911.4,2909.6,2.89157719]
[1769447140659,1.85077923,2911.2,2909.6,2.89157719]
[1769447141234,1.85077923,2911.2,2909.7,2.03236356]
[1769447142564,0.72,2911.4,2909.7,2.03236356]
[1769447142740,0.72,2911.4,2909.9,2.03236356]
[1769447142940,0.37003986,2911.3,2910.1,2.03236356]
[1769447144341,1.85277923,2911.8,2910.1,2.03236356]
[1769447144666,1.85077923,2911.6,2910.3,2.03236356]
[1769447146766,1.85077923,2911.4,2910.0,2.32151647]
[1769447146947,1.85077923,2911.4,2910.0,3.18062137]
[1769447147144,1.85077923,2911.2,2910.1,0.31806214]
[1769447148073,0.27094431,2911.3,2910.1,2.3504257]
[1769447148974,2.13268217,2911.3,2910.2,1.91840223]
[1769447149675,0.27094431,2911.3,2910.2,1.91840223]
[1769447150673,2.13268217,2911.3,2910.1,0.31806214]
[1769447150876,1.86173786,2911.1,2910.0,1.14825021]
[1769447151180,1.86173786,2911.1,2910.3,0.001]
[1769447153876,0.29913757,2911.2,2910.3,0.001]
[1769447154176,2.16087543,2911.2,2910.3,0.001]
[1769447154375,1.86173786,2911.2,2910.3,0.001]
[1769447159082,1.86173786,2911.2,2909.6,3.89]
[1769447159083,1.86173786,2910.9,2909.6,3.89]
[1769447159280,1.86173786,2910.9,2909.4,1.91840223]
[1769447159579,0.8588114,2911.0,2909.5,0.27777093]
[1769447159580,1.86173786,2910.7,2909.5,0.27777093]
[1769447159875,1.86173786,2910.7,2909.4,1.91840223]
[1769447160250,1.86173786,2910.7,2909.2,0.001]
[1769447160678,1.86173786,2910.4,2909.2,0.001]
[1769447161046,1.86173786,2910.2,2909.2,0.001]
[1769447161252,1.86173786,2910.0,2909.2,0.001]
[1769447162655,1.86173786,2910.0,2909.8,0.001]
[1769447163981,1.86173786,2909.9,2909.2,0.001]
[1769447164148,1.86173786,2909.9,2909.0,9.91914925]
[1769447164353,1.86173786,2909.7,2909.0,9.91914925]
[1769447165888,1.86173786,2909.6,2909.0,9.91914925]
[1769447166955,0.72,2909.7,2909.0,9.91914925]
[1769447167256,0.85922463,2909.6,2909.0,9.91914925]
[1769447167452,1.86173786,2909.5,2909.0,9.91914925]
[1769447167658,0.27209625,2909.4,2909.0,9.91914925]
[1769447168286,0.72,2909.7,2909.0,9.91914925]
[1769447170188,1.86173786,2909.6,2909.0,9.91914925]
[1769447173061,0.72,2909.7,2909.0,9.91914925]
[1769447176390,2.85382234,2909.8,2909.2,0.001]
[1769447176780,0.002,2909.5,2909.2,0.001]
[1769447178405,0.18857379,2909.5,2909.2,0.001]
[1769447178581,2.04771618,2909.5,2909.2,0.001]
[1769447178783,2.04771618,2909.5,2909.0,9.91914925]
[1769447182607,1.85914239,2909.4,2909.0,9.91914925]
[1769447182807,1.85914239,2909.4,2909.0,7.91296731]
[1769447183103,0.29069754,2909.3,2909.0,7.91296731]
[1769447184107,0.18857379,2909.5,2909.0,7.91296731]
[1769447184402,0.002,2909.5,2909.0,6.28180046]
[1769447184976,0.72,2909.4,2909.1,2.01324661]
[1769447185401,0.002,2909.5,2909.1,2.01324661]
[1769447189693,0.72,2909.6,2909.1,2.01324661]
[1769447189900,0.002,2909.3,2909.1,2.01324661]
[1769447190101,0.72,2909.6,2909.1,2.01324661]
[1769447190679,0.90532586,2909.6,2909.1,2.01324661]
[1769447191711,0.18532586,2909.6,2909.1,2.01324661]
[1769447192588,0.18532586,2909.6,2909.0,12.09080981]
[1769447193079,1.1507452,2909.6,2909.0,6.28180046]
[1769447193284,0.29151434,2909.6,2909.0,6.28180046]
[1769447193493,0.18532586,2909.6,2909.0,6.28180046]
[1769447193678,0.18532586,2909.6,2909.1,2.01324661]
[1769447195507,1.1745298,2909.6,2909.0,6.28180046]
[1769447195882,1.17452858,2909.6,2909.0,6.28180046]
[1769447196083,0.3312931,2909.5,2909.0,5.76280046]
[1769447197183,0.15317282,2909.4,2909.0,5.76280046]
[1769447197790,1.01247875,2909.4,2909.0,5.12080047]
[1769447198897,0.17588794,2909.3,2907.9,2.01374661]
[1769447199690,0.17588794,2909.3,2907.8,0.001]
[1769447199691,0.1860991,2909.1,2907.8,0.001]
[1769447199903,0.1860991,2908.9,2907.8,2.01474661]
[1769447200218,0.1765501,2908.8,2907.8,2.01474661]
[1769447200722,0.72,2908.7,2907.8,2.01474661]
[1769447202122,0.72,2908.7,2908.0,0.001]
[1769447202293,0.72,2908.7,2908.0,2.01474661]
[1769447203120,1.57949629,2908.7,2908.0,2.01474661]
[1769447203322,0.72,2908.7,2908.0,0.001]
[1769447203519,1.57949446,2908.7,2908.0,0.001]
[1769447203724,0.50173585,2908.6,2908.0,0.001]
[1769447204099,0.72,2908.7,2908.0,0.001]
[1769447204929,0.72,2908.7,2908.0,2.01474661]
[1769447205301,0.72,2908.9,2908.0,2.01474661]
[1769447206828,1.57943367,2908.9,2908.0,2.01474661]
[1769447207025,1.57943521,2908.9,2908.0,2.01474661]
[1769447207626,0.52776705,2908.8,2908.0,2.01474661]
[1769447207833,0.72,2908.9,2908.0,2.01474661]
[1769447208627,1.01065483,2908.9,2908.0,2.01474661]
[1769447208802,1.01065483,2908.9,2908.0,0.001]
[1769447209195,0.29065483,2908.8,2908.0,0.001]
[1769447209429,0.01716532,2908.4,2907.4,2.02910085]
[1769447209728,0.3165966,2908.4,2907.3,0.001]
[1769447210100,0.8596087,2908.3,2907.3,0.001]
[1769447210298,0.46146401,2908.2,2907.4,2.02910085]
[1769447210523,0.87675901,2908.4,2907.4,2.02910085]
[1769447210931,0.30908904,2908.3,2907.3,0.001]
[1769447211101,0.30908904,2908.3,2907.3,2.03010085]
[1769447211301,0.87675901,2908.4,2906.9,0.002]
[1769447211634,0.87675901,2908.4,2905.8,0.128]
[1769447211635,0.002,2907.0,2905.8,2.0246172]
[1769447211942,1.94950243,2906.9,2905.5,2.03110085]
[1769447212129,2.80967308,2906.4,2905.5,0.002]
[1769447212634,2.80967308,2906.4,2905.5,0.001]
[1769447212840,1.94950243,2906.3,2905.3,3.93e-06]
[1769447213010,0.28096731,2906.2,2905.3,3.93e-06]
[1769447213210,2.23046974,2906.2,2905.3,3.93e-06]
[1769447213518,0.28096731,2906.2,2905.3,3.93e-06]
[1769447213835,1.94950243,2906.3,2905.3,3.93e-06]
[1769447214138,0.86017065,2906.4,2905.3,3.93e-06]
[1769447219035,1.94950243,2906.3,2905.3,3.93e-06]
[1769447219240,1.96666775,2906.3,2905.3,3.93e-06]
[1769447221167,0.86022985,2906.2,2905.3,3.93e-06]
[1769447221368,0.6267817,2906.1,2905.3,3.93e-06]
[1769447221665,1.94950243,2906.0,2905.3,3.93e-06]
[1769447222026,0.6267817,2906.1,2905.3,3.93e-06]
[1769447223177,0.86028905,2906.0,2905.3,3.93e-06]
[1769447223456,0.86028905,2906.0,2905.3,2.02910478]
[1769447223659,0.4928227,2905.9,2905.3,2.02910478]
[1769447223975,0.4928227,2905.9,2905.3,3.93e-06]
[1769447225170,1.35314865,2905.9,2905.3,3.93e-06]
[1769447225532,0.4928227,2905.9,2905.3,3.93e-06]
[1769447225752,1.35314784,2905.9,2905.3,3.93e-06]
[1769447226243,0.86032514,2905.9,2905.3,3.93e-06]
[1769447226444,0.86020025,2906.3,2905.3,3.93e-06]
[1769447226646,1.94950243,2906.2,2905.3,3.93e-06]
[1769447228133,0.86025945,2906.1,2905.3,3.93e-06]
[1769447228462,1.94950243,2906.0,2905.3,3.93e-06]
[1769447228667,0.86025945,2906.1,2905.3,3.93e-06]
[1769447228668,1.94950243,2905.8,2905.3,3.93e-06]
[1769447228962,1.94950243,2905.6,2904.3,0.002]
[1769447229167,1.94950243,2905.6,2904.3,2.03110085]
[1769447229351,2.09466775,2905.8,2904.3,2.03110085]
[1769447229551,2.18706682,2905.7,2904.3,2.03110085]
[1769447229870,2.18706682,2905.7,2904.3,0.002]
[1769447230038,1.94950243,2905.5,2904.3,0.002]
[1769447230238,1.94950243,2905.5,2903.9,2.03110085]
[1769447230239,1.94950243,2905.4,2903.9,0.002]
[1769447230439,1.94950243,2905.4,2903.2,2.02910085]
[1769447230440,1.94950243,2904.9,2903.4,2.02910085]
[1769447230652,1.94950243,2904.9,2902.9,0.002]
[1769447230653,2.16333453,2904.8,2903.0,2.02910085]
[1769447231186,1.96666775,2904.6,2903.0,2.02910085]
[1769447231850,0.01716532,2904.6,2903.0,2.02910085]
[1769447232266,0.86073334,2904.5,2903.0,2.02910085]
[1769447234004,1.96666775,2904.4,2902.9,2.03110085]
[1769447234204,2.39875095,2904.4,2902.9,2.03110085]
[1769447234488,2.81029504,2904.3,2902.9,2.03110085]
[1769447235576,0.86079261,2904.3,2902.9,2.03110085]
[1769447236944,0.4320832,2904.4,2902.9,2.03110085]
[1769447237145,0.86078262,2904.4,2903.1,2.02910085]
[1769447237542,0.86078262,2904.4,2903.1,2.03110085]
[1769447237746,0.86078262,2904.4,2903.1,0.723]
[1769447237952,0.86078262,2904.4,2903.1,0.002]
[1769447237953,1.94950243,2904.3,2903.1,0.002]
[1769447238148,0.2810285,2904.2,2903.1,0.002]
[1769447238376,0.2810285,2904.2,2903.1,2.03110085]
[1769447238581,0.86085189,2904.1,2903.1,2.03110085]
[1769447240393,1.14187272,2904.2,2903.1,2.03110085]
[1769447240588,0.2810285,2904.2,2903.1,2.03110085]
[1769447240885,3.44294842,2904.5,2903.3,2.26112621]
[1769447243889,0.32466678,2904.8,2903.3,2.26112621]
[1769447244093,0.86067407,2904.7,2903.3,2.26112621]
[1769447244463,1.05732976,2904.8,2903.3,2.26112621]
[1769447244795,1.08398042,2904.7,2903.5,2.26112621]
[1769447245304,1.94465857,2904.7,2903.5,2.26112621]
[1769447246563,1.08398042,2904.7,2903.5,2.26112621]
[1769447247299,0.19666678,2904.8,2903.5,2.26112621]
[1769447247602,0.86058519,2905.0,2903.5,2.26112621]
[1769447248099,2.28570895,2904.9,2903.7,2.26112621]
[1769447248505,2.28570895,2904.9,2903.4,2.26112621]
[1769447248506,2.30287427,2904.9,2903.4,2.26112621]
[1769447249067,0.86064445,2904.8,2903.4,2.26112621]
[1769447249692,0.86064445,2904.8,2903.6,2.26112621]
[1769447249898,0.001,2904.5,2903.6,2.26112621]
[1769447251405,0.86056911,2905.1,2903.6,2.26112621]
[1769447252396,0.86054448,2905.2,2903.7,2.26112621]
[1769447253309,0.86046671,2905.4,2903.8,2.26112621]
[1769447253693,0.86046671,2905.4,2904.0,2.26112621]
[1769447253914,0.65880425,2905.3,2904.2,2.26112621]
[1769447254586,0.86046671,2905.4,2904.2,2.26112621]
[1769447255015,2.28570895,2905.3,2904.2,2.26112621]
[1769447255318,0.86052595,2905.2,2904.0,2.98312621]
[1769447255817,2.28570895,2905.1,2903.6,2.26112621]
[1769447256114,2.60204897,2905.0,2903.6,2.26112621]
[1769447257626,0.86061482,2904.9,2903.6,2.26112621]
[1769447259407,3.14632377,2904.9,2903.6,2.26112621]
[1769447261909,3.14632377,2904.9,2903.8,2.26312621]
[1769447262328,0.001,2904.8,2903.8,2.26312621]
[1769447262529,0.31473238,2904.7,2903.8,2.26312621]
[1769447264237,1.17540772,2904.7,2903.8,2.26312621]
[1769447266514,0.31473238,2904.7,2903.8,2.26312621]
[1769447266832,1.17541971,2904.7,2903.8,2.26312621]
[1769447269055,2.47871977,2904.6,2903.8,0.002]
[1769447269239,0.36541395,2904.5,2903.8,0.002]
[1769447269535,1.17541971,2904.7,2903.8,2.33585431]
[1769447275423,0.31473238,2904.7,2903.8,2.33585431]
[1769447275627,0.86164497,2904.8,2903.8,2.33585431]
[1769447276430,0.86165059,2904.8,2903.8,2.33585431]
[1769447276629,0.001,2904.8,2903.8,2.33585431]
[1769447281165,0.001,2904.8,2904.0,2.33385431]
[1769447281360,0.001,2904.8,2904.2,2.33385431]
[1769447282730,0.001,2904.8,2904.1,0.722]
[1769447282731,0.86039235,2905.7,2904.3,2.33385431]
[1769447286070,3.33915687,2905.5,2904.2,2.63943974]
[1769447286275,3.34015687,2905.5,2904.2,2.63943974]
[1769447287179,2.47871977,2905.4,2904.2,2.63943974]
[1769447289341,3.33919229,2905.4,2904.2,2.63943974]
[1769447289643,0.001,2905.5,2904.2,2.63943974]
[1769447289843,0.86144203,2905.5,2904.4,2.33385431]
[1769447290752,0.001,2905.5,2904.4,2.33385431]
[1769447291051,0.8614417,2905.5,2904.4,2.33385431]
[1769447291451,0.001,2905.5,2904.4,2.33385431]
[1769447291851,2.47971977,2905.5,2904.4,2.33385431]
[1769447292052,0.24797198,2905.4,2904.4,2.33385431]
[1769447292564,0.001,2905.5,2904.4,2.33385431]
[1769447293546,0.001,2905.5,2904.7,2.33385431]
[1769447294998,2.47871977,2905.3,2904.2,0.30558543]
[1769447295201,2.47871977,2905.0,2904.0,0.002]
[1769447295551,0.86061482,2904.9,2904.0,0.002]
[1769447296052,0.86061482,2904.9,2904.0,2.33585431]
[1769447296253,0.430297,2904.8,2904.0,2.33585431]
[1769447296778,0.86060806,2905.0,2904.0,2.33585431]
[1769447297868,0.86060806,2905.0,2904.4,0.002]
[1769447298070,2.47871977,2904.9,2903.8,0.002]
[1769447298275,2.47871977,2904.9,2903.9,3.05385824]
[1769447298591,0.33393278,2904.8,2904.1,0.002]
[1769447298797,0.86060806,2905.0,2904.1,0.002]
[1769447299112,3.45411392,2905.0,2904.1,0.002]
[1769447301287,2.59350586,2904.9,2904.1,0.002]
[1769447301954,0.86064445,2904.8,2904.1,0.002]
[1769447304297,0.86063445,2904.9,2904.1,2.49922367]
[1769447304598,0.430299,2904.8,2904.1,2.49922367]
[1769447306705,0.86058802,2905.0,2904.1,2.49922367]
[1769447307095,2.59350586,2904.9,2904.1,0.002]
[1769447307416,2.59350586,2904.8,2904.1,0.001]
[1769447307614,2.59350586,2904.8,2903.8,0.002]
[1769447307783,2.59350586,2904.8,2903.0,0.86317622]
[1769447307784,8.42124034,2904.0,2903.0,0.002]
[1769447307982,2.59350586,2903.9,2903.1,3.93e-06]
[1769447308290,3.45453565,2903.5,2903.0,3.93e-06]
[1769447309200,0.8609925,2903.7,2903.0,3.93e-06]
[1769447309383,0.8609622,2903.8,2903.0,3.93e-06]
[1769447309586,3.02569353,2903.7,2903.0,3.93e-06]
[1769447310205,0.43218767,2903.7,2903.0,3.93e-06]
[1769447310620,1.29318772,2903.7,2903.0,3.93e-06]
[1769447310914,1.29318772,2903.7,2903.2,0.002]
[1769447311102,1.29318772,2903.7,2903.0,2.4972276]
[1769447311288,0.47369671,2903.6,2903.0,3.93e-06]
[1769447312480,0.86102979,2903.5,2903.0,3.93e-06]
[1769447313282,3.92822388,2903.6,2903.0,3.93e-06]
[1769447313682,2.59350586,2903.5,2903.0,3.93e-06]
[1769447313900,2.59350586,2903.5,2902.9,3.93e-06]
[1769447314109,2.98632825,2903.4,2902.6,0.00100099]
[1769447314685,2.59350586,2903.2,2902.6,0.00100099]
[1769447314883,2.59350586,2903.2,2902.4,0.002]
[1769447315083,2.59350586,2903.2,2902.4,0.001]
[1769447315825,2.59350586,2902.9,2902.1,0.001]
[1769447315996,2.59350586,2902.7,2901.4,2.49722367]
[1769447316198,2.59350586,2902.7,2901.4,2.49323154]
[1769447316702,0.86129676,2902.6,2901.4,2.49323154]
[1769447316907,3.45480262,2902.6,2901.4,2.49323154]
[1769447317319,2.59350586,2902.5,2901.4,2.49323154]
[1769447317500,0.34548026,2902.4,2901.4,2.49323154]
[1769447318317,2.93898612,2902.4,2901.1,2.49722367]
[1769447318498,2.59350586,2902.4,2901.1,2.49722367]
[1769447318701,2.59350586,2902.2,2901.1,2.49722367]
[1769447319016,2.59350586,2902.2,2900.3,2.49722367]
[1769447319317,2.59350586,2902.2,2900.5,2.49722367]
[1769447319497,2.59350586,2902.0,2900.5,2.81914604]
[1769447320314,0.34548917,2902.1,2900.6,2.49722367]
[1769447320519,3.45489165,2902.3,2900.7,2.49722367]
[1769447321221,3.45489165,2902.3,2900.8,2.49722367]
[1769447321720,0.86137755,2902.4,2900.8,2.49722367]
[1769447322286,0.86134664,2902.5,2900.8,2.49722367]
[1769447322728,2.59350586,2903.1,2901.2,2.49722367]
[1769447322891,0.86119473,2903.0,2901.4,2.49722367]
[1769447323497,2.59350586,2903.1,2901.4,3.35885216]
[1769447323706,0.8611686,2903.1,2901.5,2.49722367]
[1769447323908,0.001,2902.4,2901.5,2.49722367]
[1769447324312,0.001,2902.4,2901.6,0.722]
[1769447324616,0.001,2902.4,2901.7,2.81914604]
[1769447324994,0.86113294,2903.2,2901.7,2.81914604]
[1769447325604,2.59350586,2903.2,2901.8,0.722]
[1769447325812,0.01716532,2903.7,2901.8,0.722]
[1769447325813,0.001,2905.3,2902.0,2.32603889]
[1769447326015,0.001,2905.3,2904.5,1.95040302]
[1769447326016,0.01716532,2904.9,2904.5,1.95040302]
[1769447326289,0.01716532,2905.3,2904.6,0.722]
[1769447326486,0.001,2905.5,2904.6,0.722]
[1769447326487,0.01716532,2905.2,2904.6,0.722]
[1769447326700,0.01716532,2905.0,2904.6,0.722]
[1769447327292,0.01716532,2904.8,2904.7,0.722]
[1769447327492,0.01716532,2905.0,2904.7,0.722]
[1769447328086,0.01716532,2905.0,2904.7,1.58267096]
[1769447328499,0.01716532,2904.9,2904.7,1.58267096]
[1769447329219,0.01716532,2905.0,2904.7,1.58267096]
[1769447329593,0.01716532,2904.9,2904.7,1.58267096]
[1769447329795,0.01716532,2905.0,2904.7,1.58267096]
[1769447330123,0.01716532,2904.9,2904.7,1.58267096]
[1769447330330,0.01716532,2905.0,2904.7,1.58267096]
[1769447330491,0.01716532,2904.9,2904.7,1.58267096]
[1769447330686,0.01716532,2905.0,2904.7,1.58267096]
[1769447330915,0.01716532,2904.9,2904.7,1.58267096]
[1769447331115,0.01716532,2905.0,2904.7,1.58267096]
[1769447331314,0.01716532,2904.9,2904.7,1.58267096]
[1769447331826,0.01716532,2905.0,2904.7,1.58267096]
[1769447332005,0.01716532,2904.9,2904.7,1.58267096]
[1769447332524,0.01716532,2905.0,2904.7,1.58267096]
[1769447333024,0.01716532,2904.9,2904.7,1.58267096]
[1769447333925,0.01716532,2905.2,2904.7,1.58267096]
[1769447334100,0.01816532,2905.5,2904.7,2.08521755]
[1769447334304,0.01816532,2905.5,2903.6,2.38221738]
[1769447334305,0.01716532,2904.9,2903.6,2.38221738]
[1769447334624,0.01716532,2904.3,2903.7,0.722]
[1769447334826,0.01716532,2904.5,2903.7,0.722]
[1769447335622,0.01716532,2905.1,2903.8,2.40448]
[1769447336021,0.01716532,2905.1,2904.9,0.002]
[1769447336226,0.29498373,2905.1,2904.9,0.002]
[1769447337003,0.27781841,2905.1,2904.9,0.002]
[1769447337214,0.01716532,2905.3,2904.9,0.002]
[1769447338426,0.01816532,2905.5,2904.9,0.002]
[1769447338814,0.01716532,2905.3,2904.9,0.002]
[1769447340299,0.01716532,2904.8,2903.5,0.002]
[1769447340504,0.2932672,2904.8,2904.1,0.86084709]
[1769447340933,0.2932672,2904.8,2903.9,0.86088963]
[1769447341232,0.01716532,2904.6,2904.0,0.721]
[1769447341412,0.01716532,2904.6,2904.0,1.58187362]
[1769447342319,2.76101882,2904.8,2904.0,1.58187362]
[1769447342834,2.76101882,2904.8,2904.0,0.721]
[1769447343332,2.76101882,2904.8,2903.9,0.86089804]
[1769447343629,0.27610188,2904.7,2904.0,1.5818763]
[1769447344694,0.27610188,2904.7,2904.0,1.57328548]
[1769447344928,0.27610188,2904.7,2904.0,0.71240918]
[1769447345134,2.7438535,2905.1,2904.0,1.5732892]
[1769447345524,0.01716532,2904.6,2903.5,0.002]
[1769447345726,2.76101882,2904.2,2903.5,0.002]
[1769447345930,2.76101882,2904.2,2903.5,0.723]
[1769447345931,3.01995538,2904.1,2903.5,0.723]
[1769447346736,3.01995538,2904.1,2903.5,0.002]
[1769447347316,0.27610188,2904.1,2903.5,0.002]
[1769447347498,2.7438535,2904.5,2903.5,0.002]
[1769447348217,2.7438535,2904.5,2903.7,0.002]
[1769447352816,6.34,2904.8,2903.7,0.002]
[1769447353349,2.7438535,2904.9,2903.7,0.002]
[1769447353548,3.01823885,2904.9,2903.7,0.27269556]
[1769447354355,3.01823885,2904.9,2903.8,0.722]
[1769447358852,3.01823885,2904.9,2903.7,0.002]
[1769447358853,2.90773375,2904.7,2903.7,0.002]
[1769447359039,2.90773375,2904.3,2903.7,0.002]
[1769447359244,2.90773375,2904.1,2903.7,0.002]
[1769447362154,2.90773375,2904.1,2903.7,0.001]
[1769447362858,2.90773375,2903.7,2902.3,0.00100196]
[1769447363045,2.90773375,2903.7,2902.5,0.86131109]
[1769447363244,2.90773375,2904.0,2902.6,2.96834696]
[1769447363456,3.28459243,2903.9,2902.7,0.38296675]
[1769447369361,3.28459243,2903.9,2902.7,3.4026596]
[1769447370064,0.37685868,2903.9,2902.8,3.01969285]
[1769447370268,3.21738898,2904.2,2902.8,3.01969285]
[1769447370851,2.90773375,2904.1,2902.8,3.01969285]
[1769447371867,0.001,2903.9,2902.8,3.01969285]
[1769447372047,2.90873375,2903.9,2902.9,0.722]
[1769447375280,0.001,2903.9,2902.9,3.74169285]
[1769447375450,0.001,2903.9,2903.0,0.46029074]
[1769447376050,0.001,2903.9,2902.9,0.722]
[1769447376772,2.90773375,2903.8,2903.0,0.722]
[1769447377357,2.90773375,2903.8,2902.4,7.77102622]
[1769447377550,2.90773375,2903.8,2902.5,0.722]
[1769447377858,0.01816532,2903.9,2902.5,0.722]
[1769447377859,2.90773375,2903.6,2902.5,0.722]
[1769447378056,2.90773375,2903.4,2902.5,0.722]
[1769447378462,2.90773375,2903.4,2902.6,0.722]
[1769447382471,2.90773375,2903.4,2902.3,0.00100196]
[1769447382781,2.90773375,2903.4,2902.5,0.722]
[1769447385366,2.92489907,2903.3,2902.3,0.00100196]